[Event "GER-ch Youth-ODJM 2022"]
[Site "Willingen"]
[Date "2022.06.06"]
[Round "3.4"]
[White "Zha, Kevin"]
[Black "Meiwes, Thore"]
[Result "0-1"]
[ECO "B12"]
[WhiteElo "1835"]
[BlackElo "2080"]
[Annotator "TA"]
[PlyCount "98"]
[EventDate "2022.06.05"]
[EventType "swiss"]
[EventRounds "9"]
[EventCountry "GER"]
[SourceTitle "playchess.com"]
[Source "ChessBase"]
[SourceQuality "1"]
[TimeControl "40/4500+30:900+30"]

{[%evp 9,98,7,6,0,19,17,19,16,22,0,17,-6,0,0,-8,-3,0,-37,-31,-29,-43,-27,-37,-66,-64,-66,-65,-66,-45,-81,-84,-85,-84,-79,-83,-104,-103,-123,-129,-143,-137,-142,-131,-147,-161,-145,-163,-197,-191,-191,-179,-188,-180,-186,-187,-249,-264,-253,-242,-250,-205,-228,-220,-243,-241,-241,-241,-240,-233,-229,-241,-306,-306,-621,-418,-673,-383,-450,-451,-438,-381,-387,-381,-432,-418,-395,-408,-412,-421,-463,-440]} 1. e4 {[%emt 0:00:00]} c6 {[%emt 0:00:00]} 2. d4 {[%emt 0:00:00]} d5 {[%emt 0:00:00]} 3. e5 {[%emt 0:00:00]} Bf5 {[%emt 0:00:00]} 4. h4 {[%emt 0:00:00]} h5 {[%emt 0:00:00]} 5. Bd3 {[%emt 0:00:00]} Bxd3 {[%emt 0:00:00]} 6. Qxd3 {[%emt 0:00:00][%cal Oe5e6] B12: Caro-Kann: Advance Variation.} Qa5+ {[%emt 0:00:00]} 7. Nd2 {[%emt 0:00:00][%cal Oe5e6]} e6 {[%emt 0:00:00]} 8. Ngf3 {[%emt 0:00:00] The position is equal.} Nh6 {[%emt 0:00:00]} 9. O-O {[%emt 0:00:00]} Nf5 {[%emt 0:00:00]} 10. c4 {[%emt 0:00:00] 10.Nb3 is the fancy move.} Be7 11. g3 {[%emt 0:00:00]} O-O {[%emt 0:00:00][%cal Bh8f8,Bf8d8,Bd8d5][%mdl 32]} 12. Rd1 {[%emt 0:00:00]} Rd8 {[%emt 0:00:00] [#]} 13. b3 $146 {[%emt 0:02:21]} ({Predecessor:} 13. cxd5 cxd5 14. Nf1 Qa6 15. Ne3 Qxd3 16. Rxd3 Nxe3 17. Bxe3 Rc8 18. Rb3 b6 19. Rc1 Rxc1+ 20. Bxc1 {½-½ (42) Papenfuss,I (2499)-Amann,H (2401) ICCF email 2018}) 13... c5 {[%emt 0:00:00] Threatens to win with ...cxd4.} 14. cxd5 {[%emt 0:33:05]} Rxd5 {[%emt 0:00:00]} 15. Nc4 {[%emt 0:00:14]} Qa6 {[%emt 0:03:07]} 16. Ne3 {[%emt 0:28:17]} Qxd3 {[%emt 0:00:23]} 17. Rxd3 {[%emt 0:00:04]} Nxe3 {[%emt 0:00:50]} 18. fxe3 {[%emt 0:01:47]} (18. Bxe3 Nc6 19. Re1 cxd4 $17) 18... cxd4 {[%emt 0:00:58]} 19. exd4 {[%emt 0:03:47]} Nc6 {[%emt 0:00:16] White is on the road to losing.} 20. Be3 {[%emt 0:00:24]} Bc5 {[%emt 0:00:35]} 21. Kf1 {[%emt 0:02:03]} Rad8 {[%emt 0:01:47]} 22. Rad1 {[%emt 0:03:18]} f6 {[%emt 0:03:59]} 23. exf6 {[%emt 0:01:02]} gxf6 {[%emt 0:03:10]} 24. Ke2 {[%emt 0:00:18]} Bb6 {[%emt 0:01:08]} 25. a3 {[%emt 0:02:09]} Kf7 {[%emt 0:01:02]} 26. b4 {[%emt 0:01:02]} Ne7 {[%emt 0:00:35]} 27. Bf2 {[%emt 0:03:40]} Nf5 {[%emt 0:00:04]} 28. R3d2 {[%emt 0:00:20]} Rg8 {[%emt 0:01:25]} 29. Rg1 {[%emt 0:00:40]} Bc7 {[%emt 0:02:32]} 30. Rc2 {[%emt 0:02:19]} Bd6 {[%emt 0:01:24]} (30... Nxg3+ 31. Bxg3 Bxg3 32. Ng5+ fxg5 33. Rxg3 $17) 31. Kd3 {[%emt 0:00:54]} a5 {[%emt 0:01:16]} (31... Nxg3 32. Be1 Rg7 33. a4) (31... Bxg3 32. Bxg3 Rxg3 33. Rc7+ Ke8 34. Rxg3 Nxg3 35. Rxb7 $11) 32. Be1 {[%emt 0:00:43]} (32. bxa5 {might work better.} Rxa5 33. Rc3) 32... axb4 $19 {[%emt 0:01:19]} (32... Nxg3 33. Rcg2 $16) 33. axb4 {[%emt 0:00:03]} Rg4 {[%emt 0:01:15]} (33... Nxg3 34. Rcg2 $16) 34. Bf2 {[%emt 0:01:17]} Nxg3 {[%emt 0:01:53]} (34... Bxb4 35. Rc7+ Kg6 36. Rxb7) 35. Nh2 {[%emt 0:01:06]} Rg8 {[%emt 0:02:02]} ({Don't go for} 35... Rxh4 $2 36. Bxg3 Rh3 37. Nf1) 36. Bxg3 {[%emt 0:01:18]} Rxg3+ {[%emt 0:01:42]} ({Not} 36... Bxg3 $2 37. Nf3 Bd6 38. Rxg8 Kxg8 39. Ke3) 37. Rxg3 {[%emt 0:00:07]} Bxg3 {[%emt 0:00:04][%mdl 4096] Endgame KRB-KRN} 38. Nf3 {[%emt 0:00:02]} Bd6 {[%emt 0:02:06]} 39. Rc8 {[%emt 0:00:17]} Rb5 {[%emt 0:01:41]} ({Inferior is} 39... Bxb4 40. Rc7+ Kg6 41. Rxb7) 40. Ke4 {[%emt 0:02:12]} Rxb4 {[%emt 0:01:14] [#] White must now prevent ...Rb3.} 41. Rh8 $2 {[%emt 0:15:15]} (41. Kd3) 41... Rb5 {[%emt 0:16:17]} 42. Nd2 {[%emt 0:00:00]} (42. Rh7+ $142 Kg6 43. Rd7) 42... Bg3 {[%emt 0:00:00]} 43. Rh7+ {[%emt 0:00:00]} Kg6 {[%emt 0:00:00]} 44. Re7 {[%emt 0:00:00]} Rb2 {[%emt 0:00:00]} 45. Nc4 {[%emt 0:00:00]} Rb4 {[%emt 0:00:00]} 46. Ne3 {[%emt 0:00:00]} f5+ {[%emt 0:00:00]} 47. Kf3 {[%emt 0:00:00]} Kf6 {[%emt 0:00:00]} 48. Rh7 {[%emt 0:00:00]} Bxh4 {[%emt 0:00:00]} 49. Rxh5 {[%emt 0:00:00]} Rxd4 {[%emt 0:00:00] Weighted Error Value: White=0.31/Black=0.18 (very precise)} 0-1

[Event "GER-ch Youth-ODJM 2022"]
[Site "Willingen"]
[Date "2022.06.06"]
[Round "3.5"]
[White "Wensing, Maximilian"]
[Black "Struck, Lasse"]
[Result "1-0"]
[ECO "A36"]
[WhiteElo "2063"]
[BlackElo "1847"]
[Annotator "TA"]
[PlyCount "41"]
[EventDate "2022.06.05"]
[EventType "swiss"]
[EventRounds "9"]
[EventCountry "GER"]
[SourceTitle "playchess.com"]
[Source "ChessBase"]
[SourceQuality "1"]
[TimeControl "40/4500+30:900+30"]

{[%evp 13,41,17,20,18,52,25,11,-9,1,-46,-15,-37,0,-25,-18,-46,-27,-129,-141,-159,-50,-147,-70,-149,-163,-146,-77,-125,701,726]} 1. c4 {[%emt 0:00:00]} c5 {[%emt 0:00:00]} 2. g3 {[%emt 0:00:00]} Nc6 {[%emt 0:00:00]} 3. Bg2 {[%emt 0:00:00]} g6 {[%emt 0:00:00]} 4. Nc3 {[%emt 0:00:00]} Bg7 {[%emt 0:00:00]} 5. a3 {[%emt 0:00:00]} d6 {[%emt 0:00:00]} 6. Rb1 {[%emt 0:00:00]} a5 {[%emt 0:00:00]} 7. d3 {[%emt 0:00:00]} e5 {[%emt 0:00:00]} 8. h4 {[%emt 0:00:00] [#] A36: Symmetrical English vs ...g6: 4 Bg2 Bg7.} Bg4 $146 {[%emt 0:00:00]} ({Predecessor:} 8... h6 9. Bd2 Nge7 10. Qc1 f5 11. Nf3 Be6 12. O-O Nd4 13. Nxd4 cxd4 14. Nb5 d5 15. cxd5 Rc8 16. dxe6 Rxc1 17. Rfxc1 {½-½ (64) Tabatabaei,M (2629)-Dardha,D (2485) Chess.com INT 2021}) 9. Nd5 {[%emt 0:00:00][%cal Oh4h5]} h6 {[%emt 0:02:52]} 10. f3 {[%emt 0:09:30] The position is equal.} Be6 {[%emt 0:03:53]} 11. h5 {[%emt 0:00:09]} (11. e4 $11 {deserves consideration.}) 11... Nge7 {[%emt 0:05:24]} 12. hxg6 {[%emt 0:03:14]} fxg6 {[%emt 0:10:27]} 13. e4 {[%emt 0:01:25]} b5 {[%emt 0:05:37]} 14. f4 {[%emt 0:07:02]} Nd4 {[%emt 0:02:58] Threatens to win with ...bxc4.} 15. Be3 {[%emt 0:01:08]} (15. Nxe7 $11 {remains equal.} Kxe7 16. Nf3) 15... bxc4 $17 {[%emt 0:04:35] Hoping for ...Nxd5.} 16. dxc4 {[%emt 0:01:25][%cal Of4f5]} exf4 {[%emt 0:03:41]} ({Black should play} 16... O-O $17 {White must now prevent ...a4.} 17. f5 gxf5 18. Bxh6 Nxd5 19. exd5 Bf7 20. Bxg7 Kxg7) 17. gxf4 {[%emt 0:00:58]} (17. Nxf4 $15 Bf7 18. Bxd4 cxd4 19. Qa4+ Qd7 20. Qxd7+ Kxd7 21. Nge2) 17... a4 {[%emt 0:03:21]} (17... O-O $17 18. Qd3 Nxd5 19. cxd5 Bc8 20. Bxd4 cxd4) 18. Bh3 {[%emt 0:05:55]} (18. Qd3 $15) 18... Nxd5 {[%emt 0:04:03]} 19. cxd5 {[%emt 0:03:53]} Qh4+ {[%emt 0:04:55]} ({Better is} 19... Bxh3 20. Nxh3 O-O) 20. Kf1 {[%emt 0:01:43]} ({White should try} 20. Kd2 Bxh3 21. Rxh3 Nb3+ 22. Kc2 (22. Qxb3 $2 Qxh3 23. Qxa4+ Rxa4 $19)) 20... Bc8 $2 {[%emt 0:06:15][%mdl 8192] [#]} ({Don't do} 20... Qg3 21. Bc1 $14) (20... Bxh3+ $17 21. Nxh3 (21. Rxh3 Qe7 $17) 21... Qg3) 21. Bd7+ $1 {[%emt 0:00:31][%mdl 512] What a bad dream for Black.  Weighted Error Value: White=0.49/Black=0.33} 1-0

[Event "GER-ch Youth-ODJM 2022"]
[Site "Willingen"]
[Date "2022.06.06"]
[Round "3.6"]
[White "Kardoeus, David"]
[Black "Irkilmez, Yakub"]
[Result "1/2-1/2"]
[ECO "C07"]
[WhiteElo "2144"]
[BlackElo "2169"]
[Annotator "TA"]
[PlyCount "90"]
[EventDate "2022.06.05"]
[EventType "swiss"]
[EventRounds "9"]
[EventCountry "GER"]
[SourceTitle "playchess.com"]
[Source "ChessBase"]
[SourceQuality "1"]
[TimeControl "40/4500+30:900+30"]

{[%evp 22,90,0,0,14,-21,22,0,0,0,0,0,10,-60,-24,-12,-25,-31,-16,-32,-39,-38,-42,-18,0,0,10,13,22,20,31,0,0,-22,-5,-7,0,-10,-11,-14,-14,-14,-7,-32,-32,-39,0,-38,-27,-62,-38,-26,-10,-56,-2,-71,-4,-204,-86,-85,-86,-97,-72,-75,-8,-8,-4,-7,0,-23,0]} 1. e4 {[%emt 0:00:00]} e6 {[%emt 0:00:00]} 2. d4 {[%emt 0:00:00]} d5 {[%emt 0:00:00]} 3. Nd2 {[%emt 0:00:00]} c5 {[%emt 0:00:00]} 4. exd5 {[%emt 0:00:00]} Qxd5 {[%emt 0:00:00]} 5. Ngf3 {[%emt 0:00:00]} cxd4 {[%emt 0:00:00]} 6. Bc4 {[%emt 0:00:00]} Qd6 {[%emt 0:00:00]} 7. O-O {[%emt 0:00:00]} Nf6 {[%emt 0:00:00]} 8. Nb3 {[%emt 0:00:00]} Nc6 {[%emt 0:00:00]} 9. Nbxd4 {[%emt 0:00:00]} Nxd4 {[%emt 0:00:00]} 10. Nxd4 {[%emt 0:00:00]} a6 {[%emt 0:00:00]} 11. c3 {[%emt 0:00:00]} Qc7 {[%emt 0:00:00]} 12. Qe2 {[%emt 0:00:00]} h6 {[%emt 0:00:00] [#] Inhibits Bg5. C07: French Tarrasch: 3...c5, 4 Ngf3 and 4 exd5 Qxd5.} 13. Rd1 $146 {[%emt 0:05:27]} ({Predecessor:} 13. Re1 Bd6 14. Nf3 O-O 15. Bb3 Bd7 16. Ne5 Bxe5 17. Qxe5 Qxe5 18. Rxe5 Bc6 19. f3 Rfd8 20. Be3 {1-0 (63) Hamitevici,V (2484)-Rodgaard,J (2338) Runavik 2016}) 13... Be7 {[%emt 0:00:00]} 14. Nf3 {[%emt 0:12:36]} O-O {[%emt 0:00:00] The position is equal.} 15. Rd4 {[%emt 0:06:36]} b5 {[%emt 0:18:34]} 16. Bf4 {[%emt 0:01:22]} Qc5 {[%emt 0:04:11]} 17. b4 {[%emt 0:06:30]} ({Better is} 17. Bd3 $11) 17... Qb6 {[%emt 0:01:57]} (17... Qh5 $5 {[%cal Rb5c4]} 18. Bb3 Bb7 $15) 18. Bb3 {[%emt 0:07:38][%cal Of4h6]} Bb7 {[%emt 0:02:40]} 19. Ne5 {[%emt 0:04:20]} Rad8 {[%emt 0:03:01]} 20. Be3 {[%emt 0:05:11][%cal Od4d7]} Qc7 {[%emt 0:00:45][%csl LRc3,LRe5] Inhibits Rd7.} 21. Rxd8 {[%emt 0:05:15]} Rxd8 {[%emt 0:00:34]} 22. Bd4 {[%emt 0:00:44]} Bxb4 {[%emt 0:15:55]} 23. Qe3 {[%emt 0:12:49]} Rxd4 {[%emt 0:02:36]} 24. cxd4 {[%emt 0:02:12]} Bc3 {[%emt 0:00:59] This bishop pair is nice.} 25. Rc1 {[%emt 0:06:00]} b4 {[%emt 0:00:25]} 26. a3 {[%emt 0:10:08] Black must now prevent axb4.} (26. Nd3 $5 {[%cal Rd3b4]}) 26... a5 {[%emt 0:00:16]} 27. Qd3 {[%emt 0:00:31]} Qd6 {[%emt 0:02:43]} 28. axb4 {[%emt 0:00:34]} axb4 {[%emt 0:00:07]} 29. Rxc3 {[%emt 0:01:07]} bxc3 {[%emt 0:00:32]} 30. Qxc3 {[%emt 0:00:07]} Ne4 {[%emt 0:00:56]} 31. Qe3 {[%emt 0:00:43]} Qa3 $40 {[%emt 0:01:52][%mdl 128] ( -> ...Qa1+). Black attacks.} 32. h4 {[%emt 0:00:59][%cal Oe5f7]} (32. h3 $5 {[%cal Re5f7]}) 32... Qa1+ {[%emt 0:07:30]} 33. Kh2 {[%emt 0:00:01][%cal Oe5f7]} Nf6 {[%emt 0:01:33]} 34. f3 {[%emt 0:00:09][%cal Oe5f7] aiming for Nxf7!} Qb2 {[%emt 0:02:16]} 35. Kh3 {[%emt 0:00:16][%cal Oe5f7]} Bd5 {[%emt 0:00:46]} (35... Ba6 $5 {[%cal Ra6f1]} 36. Nc4 (36. Nxf7 $2 Bf1 $19) 36... Qb1 $17) 36. Bd1 {[%emt 0:01:16]} Qa1 {[%emt 0:02:59]} 37. Qd3 {[%emt 0:00:37]} (37. Qd2 $1 $11 {feels stronger.}) 37... Qc1 {[%emt 0:00:38]} (37... Bb7 $1 $15) 38. Kh2 {[%emt 0:00:46] [#]} (38. Qc2 $11 Qxc2 39. Bxc2) 38... Nh5 {[%emt 0:03:24]} (38... Bb7 $1 $17) 39. Bc2 $2 {[%emt 0:00:30]} (39. g3 $11 {and White has nothing to worry.}) 39... Qf4+ {[%emt 0:00:11]} (39... Qe1 $19 {is more deadly. Threatens to win with ...f5.} 40. Qh7+ Kf8) 40. Kg1 $17 {[%emt 0:00:26]} Qxh4 {[%emt 0:12:27]} 41. Qc3 {[%emt 0:00:00] Inhibits Qe1+. Qc8+ would kill now.} Qd8 {[%emt 0:00:00] Against Qc8} 42. Qc5 {[%emt 0:00:00] [#]} Nf6 {[%emt 0:00:00]} (42... f5 $1 $17 {Strongly threatening ...Kh7.} 43. Ng6 Nf6) 43. Qa7 $1 $11 {[%emt 0:00:00]} Qf8 {[%emt 0:00:00]} 44. Qc7 {[%emt 0:01:31]} h5 {[%emt 0:07:41]} 45. Bd3 {[%emt 0:02:21]} Qe8 {[%emt 0:04:20] Weighted Error Value: White=0.28 (precise) /Black=0.22 (precise)} 1/2-1/2

[Event "GER-ch Youth-ODJM 2022"]
[Site "Willingen"]
[Date "2022.06.06"]
[Round "3.7"]
[White "Kamp, Adrian"]
[Black "Gallasch, Jonas"]
[Result "0-1"]
[ECO "B40"]
[WhiteElo "1969"]
[BlackElo "2044"]
[Annotator "TA"]
[PlyCount "68"]
[EventDate "2022.06.05"]
[EventType "swiss"]
[EventRounds "9"]
[EventCountry "GER"]
[SourceTitle "playchess.com"]
[Source "ChessBase"]
[SourceQuality "1"]
[TimeControl "40/4500+30:900+30"]

{[%evp 15,68,27,23,-5,-20,-22,-12,-15,0,0,0,0,11,0,0,-19,0,0,-7,-6,9,16,17,20,15,0,0,-12,-9,-118,-79,-86,0,-326,-315,-294,-291,-540,-531,-574,-544,-575,-571,-566,-566,-758,-747,-739,-734,-1308,-1289,-1240,-1182,-1103,-1054]} 1. e4 {[%emt 0:00:00]} c5 {[%emt 0:00:00]} 2. Nf3 {[%emt 0:00:00]} e6 {[%emt 0:00:00]} 3. c3 {[%emt 0:00:00]} Nc6 {[%emt 0:00:00]} 4. Bb5 {[%emt 0:00:00]} Nge7 {[%emt 0:00:00]} 5. O-O {[%emt 0:00:00]} a6 {[%emt 0:00:00]} 6. Ba4 {[%emt 0:00:00]} b5 {[%emt 0:00:00]} 7. Bc2 {[%emt 0:00:00]} d5 {[%emt 0:00:00]} 8. d4 {[%emt 0:00:00]} cxd4 {[%emt 0:00:00]} 9. cxd4 {[%emt 0:00:00] B30: Sicilian: 2...Nc6 3 Bb5, lines without ...g6.} Nb4 $1 {[%emt 0:04:25]} 10. Nc3 {[%emt 0:03:52]} Nxc2 {[%emt 0:01:17]} 11. Qxc2 {[%emt 0:00:20] The position is equal.} dxe4 {[%emt 0:14:33]} 12. Qxe4 {[%emt 0:08:40] [#]} Rb8 $146 {[%emt 0:01:58]} ({Predecessor:} 12... Ra7 13. Bg5 f6 14. Bf4 Qd7 {½-½ (14) Hazai,L (2430)-Sax,G (2530) Budapest 1976}) 13. Bg5 {[%emt 0:18:35] Hoping for Rad1.} Bb7 {[%emt 0:04:17]} 14. Qg4 {[%emt 0:04:45][%cal Od4d5]} b4 {[%emt 0:37:26]} 15. Na4 {[%emt 0:10:04]} Bxf3 {[%emt 0:00:42]} 16. Qxf3 {[%emt 0:05:09]} Qd5 {[%emt 0:01:08]} 17. Qg3 {[%emt 0:02:37]} Nc6 {[%emt 0:00:38]} 18. Bf4 {[%emt 0:11:21] Inhibits Bd6.} Nxd4 {[%emt 0:14:47]} 19. Rfe1 {[%emt 0:01:41] Prevents Ne2+.} Rb7 {[%emt 0:00:28]} 20. Rac1 {[%emt 0:01:37][%mdl 1024] [#] And now Qd3 would win. White has compensation.} f6 $1 {[%emt 0:00:34]} 21. Rc8+ {[%emt 0:05:13]} Kf7 {[%emt 0:00:05][%cal Od4e2] White must now prevent ...Ne2+!} 22. Qe3 {[%emt 0:01:51] Prevents Ne2+.} (22. Qg4 $11) 22... Rg8 {[%emt 0:02:33]} 23. Rd1 {[%emt 0:04:21] [#]} e5 {[%emt 0:00:38]} (23... Rd7 $1 $17 24. Rcc1 e5) 24. h3 $2 {[%emt 0:01:11][%mdl 8192]} Be7 $19 {[%emt 0:00:28] Chess con chili. Active counter play!} 25. Rxg8 Kxg8 {[%emt 0:00:01]} 26. Qd3 $2 {[%emt 0:04:32]} (26. Kh1 {is a better defense.}) 26... Rd7 {[%emt 0:00:44][%cal Bb7d7,Bd7d8,Bd8d1][%mdl 32] aiming for ...Ne2+. Black is clearly winning.} 27. Bd2 {[%emt 0:01:13] Threatens to win with Nb6.} Qb5 {[%emt 0:01:21] Against Nb6} 28. Qxb5 {[%emt 0:01:22]} axb5 {[%emt 0:00:33]} ({Stronger than} 28... Nxb5 29. Kf1 $17) 29. Nb6 {[%emt 0:00:16]} Rd8 {[%emt 0:00:05]} 30. a4 {[%emt 0:01:08]} bxa3 {[%emt 0:00:14]} 31. bxa3 {[%emt 0:00:30]} Bc5 {[%emt 0:00:57]} 32. Ba5 {[%emt 0:00:12]} Ne2+ {[%emt 0:00:10]} 33. Kf1 {[%emt 0:00:07]} Rxd1+ {[%emt 0:00:05]} 34. Kxe2 {[%emt 0:00:06]} Rd6 {[%emt 0:00:07] Weighted Error Value: White=0.72/Black=0.06 (flawless)} 0-1

[Event "GER-ch Youth-ODJM 2022"]
[Site "Willingen"]
[Date "2022.06.06"]
[Round "3.8"]
[White "Gerlach, Felix"]
[Black "Jenner, Meikel"]
[Result "1/2-1/2"]
[ECO "A15"]
[WhiteElo "2072"]
[BlackElo "1981"]
[Annotator "TA"]
[PlyCount "69"]
[EventDate "2022.06.05"]
[EventType "swiss"]
[EventRounds "9"]
[EventCountry "GER"]
[SourceTitle "playchess.com"]
[Source "ChessBase"]
[SourceQuality "1"]
[TimeControl "40/4500+30:900+30"]

{[%evp 11,69,22,23,0,0,0,25,26,34,13,11,4,3,18,13,0,0,0,0,0,0,0,0,-32,-27,-28,-25,-68,-43,-96,-48,-39,-26,-73,-10,-11,-16,-17,-29,-14,0,-17,26,21,22,1,21,21,21,21,21,21,21,-8,-8,-85,-88,-81,-9,-4]} 1. c4 {[%emt 0:00:00]} Nf6 {[%emt 0:00:00]} 2. g3 {[%emt 0:00:00]} e6 {[%emt 0:00:00]} 3. Bg2 {[%emt 0:00:00]} d5 {[%emt 0:00:00]} 4. Nf3 {[%emt 0:00:00]} c6 {[%emt 0:00:00]} 5. b3 {[%emt 0:00:00]} Bd6 {[%emt 0:00:00]} 6. Bb2 {[%emt 0:00:00]} Nbd7 {[%emt 0:00:00] is the legacy move (6...0-0).} 7. Nc3 {[%emt 0:00:00] Inhibits b5. A13: English Opening: 1...e6.} O-O {[%emt 0:00:00]} 8. Rc1 {[%emt 0:00:00]} b6 {[%emt 0:00:00]} 9. O-O {[%emt 0:00:00] White has an edge.} Ba6 {[%emt 0:00:00] [#]} 10. Nd4 $146 {[%emt 0:09:21]} ({Predecessor:} 10. d3 e5 11. cxd5 cxd5 12. d4 e4 13. Nh4 Re8 14. f3 Rc8 15. Nf5 Bf8 16. Qd2 {1-0 (31) Karmanova,O (1842)-Komissarova,S (1609) Moscow 2020}) 10... Rc8 {[%emt 0:00:00]} 11. cxd5 {[%emt 0:01:14]} cxd5 {[%emt 0:06:09]} 12. Ncb5 {[%emt 0:31:47]} Bb8 {[%emt 0:04:20]} 13. a4 {[%emt 0:04:47]} Bb7 {[%emt 0:06:38] Inhibits Nc6.} 14. Ba3 {[%emt 0:00:58]} Nc5 {[%emt 0:00:39]} 15. b4 {[%emt 0:02:54]} Ncd7 {[%emt 0:05:33]} 16. Qb3 {[%emt 0:00:24]} Qe7 {[%emt 0:04:39]} 17. f4 {[%emt 0:03:39]} a6 {[%emt 0:02:39]} 18. Nc3 {[%emt 0:00:14]} Bd6 {[%emt 0:00:56]} 19. d3 {[%emt 0:05:48] Against Rc4} g6 {[%emt 0:02:42]} (19... Ng4 {keeps more tension.} 20. Nc2 e5 21. Nxd5 Bxd5 22. Qxd5 Rxc2 23. Rxc2 Ne3) 20. Nf3 {[%emt 0:05:19]} (20. e3 $15) 20... Rc7 {[%emt 0:04:01]} (20... Ng4 $17 {White must now prevent ...Ne3.} 21. e4 dxe4 22. Nxe4 Bd5) 21. Na2 $15 {[%emt 0:08:18]} Rfc8 {[%emt 0:01:51]} 22. Bb2 {[%emt 0:00:26]} (22. Rxc7 $11 {is superior.} Rxc7 23. Bb2) 22... Qd8 {[%emt 0:07:33]} (22... Rxc1 $17 23. Bxc1 e5 24. fxe5 Nxe5) 23. Bd4 {[%emt 0:01:50]} Rxc1 {[%emt 0:01:41]} 24. Rxc1 {[%emt 0:00:43]} Rxc1+ {[%emt 0:00:20]} 25. Nxc1 {[%emt 0:00:05]} Qc7 {[%emt 0:00:28]} 26. Na2 {[%emt 0:00:38]} e5 {[%emt 0:08:08]} 27. fxe5 {[%emt 0:00:19]} Nxe5 {[%emt 0:00:04]} 28. Qb2 {[%emt 0:02:54]} Nfd7 {[%emt 0:02:45]} 29. Nxe5 {[%emt 0:05:06]} Bxe5 {[%emt 0:00:26]} 30. Bxe5 {[%emt 0:00:40]} Qxe5 {[%emt 0:00:06]} 31. Qxe5 {[%emt 0:00:22]} Nxe5 $11 {[%emt 0:00:03] KBN-KBN} 32. Nc3 {[%emt 0:01:59]} d4 {[%emt 0:00:16]} 33. Na2 {[%emt 0:01:32]} (33. Nb1 $11 Bc6 34. Bxc6 Nxc6 35. b5 axb5 36. axb5) 33... Bxg2 $17 {[%emt 0:02:42]} 34. Kxg2 {[%emt 0:00:11]} Kf8 {[%emt 0:00:06]} (34... f5 $17) 35. Nc1 $1 {[%emt 0:00:55] Weighted Error Value: White=0.17 (very precise) /Black=0.17 (very precise)} 1/2-1/2

[Event "GER-ch Youth-ODJM 2022"]
[Site "Willingen"]
[Date "2022.06.06"]
[Round "3.11"]
[White "Terhuven, Patrick"]
[Black "Fuchs, Florian"]
[Result "1-0"]
[ECO "A04"]
[WhiteElo "2162"]
[BlackElo "2320"]
[Annotator "TA"]
[PlyCount "65"]
[EventDate "2022.06.05"]
[EventType "swiss"]
[EventRounds "9"]
[EventCountry "GER"]
[SourceTitle "playchess.com"]
[Source "ChessBase"]
[SourceQuality "1"]
[TimeControl "40/4500+30:900+30"]

{[%evp 9,65,44,43,36,40,34,42,31,39,36,28,37,30,14,50,31,42,37,35,30,29,0,81,77,98,97,210,216,431,420,428,429,602,341,409,379,358,362,496,489,504,508,529,521,513,502,701,632,7120,2704,29988,29989,29993,29994,29994,29995,29998,29999]} 1. Nf3 {[%emt 0:00:00]} c5 {[%emt 0:00:00]} 2. c4 {[%emt 0:00:00]} Nc6 {[%emt 0:00:00]} 3. d4 {[%emt 0:00:00]} cxd4 {[%emt 0:00:00]} 4. Nxd4 {[%emt 0:00:00]} f5 {[%emt 0:00:00]} 5. Nc3 {[%emt 0:00:00]} g6 {[%emt 0:00:00]} 6. e3 {[%emt 0:00:00][%cal Od4f5] A30: Symmetrical English: Double Fianchetto and Hedgehog.} Bg7 {[%emt 0:00:00]} 7. Be2 {[%emt 0:00:00]} b6 {[%emt 0:00:00] [#]} 8. O-O $146 {[%emt 0:00:19] White is slightly better.} ({Predecessor:} 8. Nxc6 dxc6 9. Qxd8+ Kxd8 10. Bd2 Be6 11. O-O-O Ke8 12. e4 Nh6 13. f3 Rf8 14. Rhe1 {0-1 (97) Foisor,C (2315)-Miezis,N (2481) Baden 2000}) 8... Nf6 {[%emt 0:00:00]} 9. Bf3 {[%emt 0:08:06]} Bb7 {[%emt 0:00:00]} 10. b3 {[%emt 0:01:58]} O-O {[%emt 0:00:00]} 11. Bb2 {[%emt 0:00:53]} a6 {[%emt 0:00:00]} 12. Qd2 {[%emt 0:08:20]} e5 {[%emt 0:12:39]} 13. Nc2 {[%emt 0:01:06][%cal Bd4c2,Bc2b4,Bb4d5][%mdl 32]} e4 {[%emt 0:00:33]} 14. Be2 {[%emt 0:00:14]} Ne5 {[%emt 0:05:40][%cal Oe5f3]} 15. Nb4 {[%emt 0:03:07]} Qb8 {[%emt 0:06:59]} (15... Nf3+ $1 $11 {keeps the balance.} 16. Bxf3 (16. gxf3 exf3 17. Rfd1 fxe2 $17) 16... exf3) 16. Nbd5 $16 {[%emt 0:03:25] White leaves nothing to chance now.} Nfg4 {[%emt 0:07:15][%cal Oe5f3] [#] ( -> ...Nf3+!)} 17. g3 {[%emt 0:02:52]} g5 {[%emt 0:02:55]} (17... Bc6 $16) 18. h3 $18 {[%emt 0:07:02]} Qd6 $2 {[%emt 0:16:53]} (18... Nh6 {was worth a try.} 19. Nxb6 Ra7) 19. hxg4 {[%emt 0:10:28]} Qh6 {[%emt 0:01:53]} 20. f4 {[%emt 0:06:48]} Qh3 {[%emt 0:10:02]} (20... exf3 $142 21. Bxf3 Nxf3+ 22. Rxf3 fxg4 23. Ne7+ Kh8) 21. Qe1 {[%emt 0:07:13]} ({Worse is} 21. fxe5 Qxg3+ 22. Kh1 Qh3+ 23. Kg1 Qg3+ 24. Kh1 Qh3+ 25. Kg1 Qg3+ $11) 21... Nf3+ {[%emt 0:03:13]} 22. Bxf3 {[%emt 0:00:23]} exf3 {[%emt 0:00:05]} 23. Rxf3 {[%emt 0:11:09]} gxf4 {[%emt 0:07:53]} 24. Rxf4 {[%emt 0:03:47] Hoping for gxf5.} Bxd5 {[%emt 0:02:09]} 25. cxd5 {[%emt 0:00:21]} Be5 {[%emt 0:00:10] [#]} 26. gxf5 $1 {[%emt 0:03:08]} Bxf4 {[%emt 0:01:20]} (26... Rae8 27. Rh4) 27. exf4 {[%emt 0:00:16]} Rae8 {[%emt 0:01:02]} 28. Ne4 {[%emt 0:02:30]} Rc8 {[%emt 0:02:36] Against Qc3. White must now prevent ...Rc2.} 29. Qf2 {[%emt 0:01:40] Against Rc2. Intending Qd4 and mate.} Rxf5 {[%emt 0:01:39]} 30. Qd4 {[%emt 0:01:30][%csl Gb2][%cal Rd4g7] White mates.} Qg4 {[%emt 0:01:41]} 31. Qh8+ {[%emt 0:00:59]} Kf7 {[%emt 0:00:05]} 32. Nd6+ {[%emt 0:01:11]} Kg6 {[%emt 0:00:11]} 33. Qg7+ {[%emt 0:00:15] Weighted Error Value: White=0.17 (very precise) /Black=0.68} 1-0